Cogmind - Beta 13 @@@ ROGUE MODE // 2024.04.15 @ 21:58:57 Player: Jason Result: Destroyed by D-53 Grenadier with Mini Grenade Launcher Performance ------------- Evolutions (0) 0 Regions Visited (2) 400 Robots Destroyed (32) 160 Value Destroyed (671) 671 Prototype IDs (2) 40 Alien Tech Used (0) 0 Bonus (24) 24 TOTAL SCORE: 1295 Bonus ------- High Alert Combat Kills 24 Cogmind --------- Core Integrity 0/250 Matter 268/300 Energy 250/250 System Corruption 0% Temperature Cool (0) Movement Walking (260) Ox2 Location -10/Mines Parts ------- > --- POWER (1) -------- Ion Engine > --- PROPULSION (2) --- Aluminum Leg > --- UTILITY (2) ------ Large Storage Unit Structural Scanner > --- WEAPON (2) ------- Rocket Launcher > --- INVENTORY (15) --- Ion Engine Large Storage Unit Large Battery (200) Medium Matter Pod (100) Improved Terrain Scanner ECM Suite Weapon Shielding Light Armor Plating Beam Cannon Makeshift Shrapnel Gun Grenade Launcher Datajack Mining Claw Peak State ------------ > --- POWER ------------ Ion Engine > --- PROPULSION ------- Wheel Wheel > --- UTILITY ---------- Large Storage Unit Improved Terrain Scanner > --- WEAPON ----------- Particle Gun Rocket Launcher > --- INVENTORY -------- Ion Engine Aluminum Leg Large Storage Unit Large Battery Medium Matter Pod Structural Scanner ECM Suite Weapon Shielding Light Armor Plating Beam Cannon Light Assault Rifle Grenade Launcher Rocket Launcher Datajack Mining Claw [Rating: 12] Favorites ----------- Power Ion Engine Engine Ion Engine Propulsion Wheel Leg Aluminum Leg Wheel Wheel Utility Large Storage Unit Device Structural Scanner Storage Large Storage Unit Processor Transport Network Coupler Weapon Rocket Launcher Energy Gun EM Pulse Gun Ballistic Gun Light Assault Rifle Launcher Rocket Launcher Special Melee Weapon Datajack Build | -11 -10 -10 ------- Run | Yrd Mat Min Slots Evolved . | . . . Power . | . . . Propulsion . | . . . Utility . | . . . Weapon . | . . . Parts Attached 33 | 10 19 4 Power 5 | 2 3 . Engine 5 | 2 3 . Core . | . . . Reactor . | . . . Propulsion 4 | 2 1 1 Treads . | . . . Leg 1 | . . 1 Wheel 3 | 2 1 . Hover . | . . . Flight . | . . . Utility 11 | 4 5 2 Device 7 | 3 2 2 Storage 3 | 1 2 . Processor 1 | . 1 . Hackware . | . . . Protection . | . . . Artifact . | . . . Weapon 13 | 2 10 1 Energy Gun 5 | 2 3 . Energy Cannon . | . . . Ballistic Gun 1 | . 1 . Ballistic Cannon . | . . . Launcher 6 | . 5 1 Special Weapon . | . . . Impact Weapon . | . . . Slashing Weapon . | . . . Piercing Weapon . | . . . Special Melee Weapon 1 | . 1 . Unidentified Prototypes . | . . . Parts Lost 7 | . 3 4 Power . | . . . Propulsion 3 | . 1 2 Utility . | . . . Weapon 4 | . 2 2 Highest Loss Streak 4 | . 2 4 To Critical Strikes . | . . . Average Slot Usage (%) 99 | . 99 97 Engine 14 | . 14 14 Wheel 27 | . 28 26 Device 12 | . 12 14 Storage 14 | . 14 14 Processor 1 | . 1 . Energy Gun 9 | . 9 13 Launcher 13 | . 13 14 Special Melee Weapon 3 | . 4 . Naked Turns . | . . . Heaviest Build 33 | 15 33 33 Greatest Support 20 | 20 20 20 Greatest Overweight (x) 3 | 3 1 2 Average Overweight (x) . | . . 1 Largest Inventory Capacity 15 | 8 15 15 Average Capacity 13 | 7 14 15 Most Carried 15 | 8 15 15 Average Carried 12 | 5 13 14 Final Capacity 15 | 8 15 15 Final Carried 15 | 8 15 13 Class Distribution -------------------- 100% | Mutant Dominant Class ---------------- Mutant | -10/Materials Mutant | -10/Mines Resources | -11 -10 -10 ----------- Run | Yrd Mat Min Matter Collected 778 | 300 468 10 Remotely 10 | 10 . . Salvage Created 858 | 138 662 58 Parts 53 | 7 44 2 Haulers Intercepted 2 | . 2 . Recyclers Shooed . | . . . Parts Field Recycled . | . . . Retrieved Matter . | . . . Parts Self-Destructed . | . . . Prevented . | . . . Kills | -11 -10 -10 ------- Run | Yrd Mat Min Combat Hostiles Destroyed 21 | . 17 4 Guns 6 | . 6 . AOE 15 | . 11 4 Classes Destroyed 10 | 2 7 1 Worker 3 | . 1 2 Builder 1 | . 1 . Tunneler 3 | 3 . . Hauler 2 | . 2 . Recycler 2 | 1 1 . Operator 1 | . 1 . Watcher 3 | . 3 . Swarmer 3 | . 3 . Grunt 14 | . 14 . Assembled 4 | . . 4 Best Kill Streak 6 | 3 4 6 Combat Bots Only 4 | . 4 4 Max Kills in Single Turn 4 | 1 2 4 Gunslinging . | . . . Exploded 4 | . 2 4 Melee . | . . . Uniques/NPCs Destroyed . | . . . Combat | -11 -10 -10 -------- Run | Yrd Mat Min Hostile Shots Fired 56 | . 40 16 Missed 9 | . 8 1 Damage Taken 1007 | 20 462 525 Core 251 | . 87 164 Absorbed by Shields . | . . . Regen/Repaired (Parts) 52 | . 52 . Core Remaining (%) 100 | 100 . . Volleys Fired 64 | 8 54 2 Largest 2 | 2 2 2 Hottest 98 | 90 98 98 Shots Fired 102 | 16 82 4 Gun 69 | 16 51 2 Cannon . | . . . Launcher 33 | . 31 2 Special . | . . . Kinetic 9 | . 9 . Thermal 19 | 8 9 2 Explosive 33 | . 31 2 Electromagnetic 41 | 8 33 . Robot Hit Streak 14 | 4 14 2 Robot Miss Streak 6 | 1 6 1 Penetration Max . | . . . Secondary Targets . | . . . Shots Hit Robots 47 | 9 36 2 Core Hits 53 | 5 35 13 Critical Kills . | . . . Critical Parts Destroyed . | . . . Critical Strikes 1 | 1 . . Burn 1 | 1 . . Melee Attacks 2 | . 2 . Impact . | . . . Slashing . | . . . Piercing . | . . . Sneak Attacks 2 | . 2 . Combat Hostiles . | . . . Follow-up Attacks . | . . . Damage Inflicted 2066 | 198 1564 304 Guns 479 | 131 332 16 Cannons . | . . . Explosions 1587 | 67 1232 288 Melee . | . . . Ramming . | . . . Kinetic 32 | . 32 . Thermal 202 | 129 57 16 Explosive 1481 | . 1193 288 Electromagnetic 351 | 69 282 . Impact . | . . . Slashing . | . . . Piercing . | . . . Highest Corruption . | . . . Average Corruption . | . . . Corruption Purged . | . . . Corruption Blocked . | . . . Overload Shots . | . . . Overflow Damage 75 | . 60 15 Projectiles . | . . . Explosions 75 | . 60 15 Melee . | . . . Knockbacks . | . . . Impact . | . . . Kinetic . | . . . Secondary . | . . . Self-Inflicted Damage 138 | 20 118 . Shots 7 | 1 6 . Rammed . | . . . Targets Rammed . | . . . Kicked . | . . . Crushed . | . . . Highest Temperature 102 | 102 81 36 Average Temperature 26 | 42 21 23 Received Heat Transfer 199 | . 159 40 Siege Activations . | . . . Robots Corrupted . | . . . Combat Hostiles . | . . . Parts Fried . | . . . Impact Corruptions . | . . . Robots Melted . | . . . Combat Hostiles . | . . . Parts Melted 1 | 1 . . Heat Transferred 433 | 309 87 37 Parts Sabotaged . | . . . Parts Stolen . | . . . Parts Stripped . | . . . Power Chain Reactions 2 | 1 1 . Alert | -11 -10 -10 ------- Run | Yrd Mat Min Peak Influence 458 | 20 458 123 Initial 109 | . 13 109 Average 194 | 7 223 108 Maximum Alert Level 2 | . 2 . Low Security (%) 55 | 100 47 100 Level 1 41 | . 49 . Level 2 2 | . 2 . Level 3 . | . . . Level 4 . | . . . Level 5 . | . . . High Security . | . . . Max Security . | . . . Squads Dispatched 5 | . 5 . Investigation 3 | . 3 . Extermination . | . . . Reinforcement 2 | . 2 . Assault . | . . . Garrison . | . . . Intercept . | . . . Searches Triggered . | . . . Construction Impeded . | . . . Haulers Reinforced . | . . . Active Scanning Responses . | . . . Cargo Convoy Interrupts . | . . . Stealth | -11 -10 -10 --------- Run | Yrd Mat Min Distress Signals 1 | . 1 . Communications Jammed . | . . . Distress Signals . | . . . Times Spotted 34 | . 25 9 Peak Tracking Total 7 | . 3 7 Tactical Retreats 1 | . . 1 Traps | -11 -10 -10 ------- Run | Yrd Mat Min Traps Triggered 1 | . 1 . Indirectly . | . . . Trap Hack Attempts . | . . . Triggered . | . . . Disarmed . | . . . Reprogrammed . | . . . Reused . | . . . Traps Extracted . | . . . Installed . | . . . Triggered . | . . . Machines | -11 -10 -10 ---------- Run | Yrd Mat Min Machines Disabled 3 | . 3 . Max in Single Turn 1 | . 1 . Machines Repaired . | . . . Machines Dismantled . | . . . Machines Sabotaged . | . . . Overloaded Fab Kills . | . . . Hacking | -11 -10 -10 --------- Run | Yrd Mat Min Machines Accessed 8 | . 8 . Terminals 5 | . 5 . Fabricators . | . . . Repair Stations 1 | . 1 . Recycling Units 2 | . 2 . Scanalyzers . | . . . Garrison Access . | . . . Total Hacks 26 | . 26 . Successful 16 | . 16 . Failed 10 | . 10 . Catastrophic 3 | . 3 . Database Lockouts . | . . . Manual . | . . . Terminals 15 | . 15 . Fabricators . | . . . Repair Stations 3 | . 3 . Recycling Units 8 | . 8 . Scanalyzers . | . . . Garrison Access . | . . . Terminal Hacks 7 | . 7 . Prototype ID Bank 1 | . 1 . Branch Access Points 1 | . 1 . Emergency Access Points 1 | . 1 . Dispatch Records 1 | . 1 . Maintenance Status 1 | . 1 . Hauler Manifests 1 | . 1 . Zone Layout 1 | . 1 . Fabricator Hacks . | . . . Repair Station Hacks 2 | . 2 . Scan Component 1 | . 1 . Repair 1 | . 1 . Recycling Unit Hacks 7 | . 7 . Recycle Component 3 | . 3 . Process 1 | . 1 . Report Inventory 2 | . 2 . Retrieve Matter 1 | . 1 . Scanalyzer . | . . . Garrison Access Hacks . | . . . Unauthorized Hacks . | . . . Terminals . | . . . Fabricators . | . . . Repair Stations . | . . . Recycling Units . | . . . Scanalyzers . | . . . Garrison Access . | . . . Data Cores Recovered . | . . . Used . | . . . Hacking Detections 7 | . 7 . Full Trace Events 3 | . 3 . Feedback Events . | . . . Feedback Blocked . | . . . Robot Schematics Acquired . | . . . Robots Built . | . . . Authchips . | . . . Time . | . . . Total Robot Build Rating . | . . . Part Schematics Acquired . | . . . Parts Built . | . . . Authchips . | . . . Time . | . . . Total Part Build Rating . | . . . Parts Repaired 1 | . 1 . Time 32 | . 32 . Parts Recycled 3 | . 3 . Recycled Matter 201 | . 201 . Retrieved Matter 330 | . 330 . Retrieved Components . | . . . Parts Scanalyzed . | . . . Part Schematics Acquired . | . . . Parts Damaged . | . . . Bothacking | -11 -10 -10 ------------ Run | Yrd Mat Min Used RIF Installer . | . . . Robots Hacked 1 | . 1 . Non-combat 1 | . 1 . Combat . | . . . Robot Hacks Applied 2 | . 2 . parse_system 2 | . 2 . Relay Couplers Released . | . . . Fabnet Peak Effective % . | . . . Robots Rewired . | . . . Allies Hacked . | . . . Hacks Repelled . | . . . Allies | -11 -10 -10 -------- Run | Yrd Mat Min Total Allies . | . . . Largest Group . | . . . Highest-Rated Group . | . . . Highest-Rated Ally . | . . . Total Orders . | . . . Ally Attacks . | . . . Total Damage . | . . . Kills . | . . . Allies Corrupted . | . . . Allies Melted . | . . . Intel | -11 -10 -10 ------- Run | Yrd Mat Min Robot Analysis Total . | . . . Derelict Logs Recovered 1 | . . 1 Drone Launches . | . . . Drone Recoveries . | . . . Exploration | -11 -10 -10 ------------- Run | Yrd Mat Min Turns Passed 2003 | 196 1667 140 Spaces Moved 1884 | 189 1563 132 Core 27 | 27 . . Treads . | . . . Legs 2 | . . 2 Wheels 1855 | 162 1563 130 Hover . | . . . Flight . | . . . Fastest Speed 50 | 50 80 95 Average Speed 92 | 76 93 97 Slowest Speed 260 | 200 95 260 Overloaded Moves . | . . . Propulsion Burnouts . | . . . Robots Hopped . | . . . Cave-ins Triggered . | . . . Exploration Rate (%) 48 | 6 97 42 Regions Visited 2 Branch Regions 1 Pre-discovered Areas . | . . . Known Exits Taken 1 | . 1 . Unknown Exits Taken 1 | 1 . . Scrap Searched 1 | . . 1 Spaces Dug 46 | . 46 . Terrain Destroyed 240 | 5 220 15 Melee . | . . . Projectile . | . . . AOE 240 | 5 220 15 Terrain Rammed . | . . . Walls Destroyed . | . . . Machines Disabled . | . . . Actions | -11 -10 -10 --------- Run | Yrd Mat Min Total 2050 | 219 1691 140 Wait 5 | 3 2 . Move 1882 | 188 1562 132 Hop . | . . . Pick Up 42 | 9 32 1 Fast Attach 6 | 6 . . Attach 9 | 1 6 2 Detach 1 | . 1 . Swap 18 | 3 13 2 Drop 21 | 1 19 1 Fire 64 | 8 54 2 Melee 2 | . 2 . Ram . | . . . Kick . | . . . Crush . | . . . Escape Stasis . | . . . Rewire . | . . . Trap . | . . . Miscellaneous . | . . . Route ------- -11/Scrapyard -10/Materials (discovered 5 exits: [*Mat x3] / *Min / [*Sub]) -10/Mines (discovered 1 exit: [*Mat]) History --------- Turn | Location | Event 37 | -11/Scrapyard | Discovered new exit (range 16) 197 | -11/Scrapyard | Entered Materials 301 | -10/Materials | Build established: Mutant 314 | -10/Materials | Discovered new exit (range 10) 467 | -10/Materials | Discovered new exit (range 7) 625 | -10/Materials | Discovered new exit (range 16) 781 | -10/Materials | Discovered new exit (range 11) 928 | -10/Materials | Repaired Particle Gun? 1045 | -10/Materials | Discovered new exit (range 12) 1721 | -10/Materials | Identified exit to Mines 1864 | -10/Materials | Entered Mines 1892 | -10/Mines | A weapon hastily lodged in a ceiling crevice suddenly fell to the ground 1946 | -10/Mines | Discovered new exit (range 13) 1965 | -10/Mines | Assembled infested the area 1998 | -10/Mines | Core integrity fell below 50% 2004 | -10/Mines | Core integrity fell below 20% 2004 | -10/Mines | Destroyed by D-53 Grenadier with Mini Grenade Launcher Last Messages --------------- 01992_ D-53 Grenadier unfolds itself. 01992_ Laser Drill disabled. 01992_ K-01 Serf collects debris. 01992_ as-77843 sneak attacks. 01992_ R-06 Scavenger system corrupted by crushing effect. 01992_ R-06 Scavenger destroyed. 01994_ K-01 Serf collects debris. 01996_ K-01 Serf destroyed. 01996_ Wheel destroyed. 01997_ Particle Gun destroyed. 01998_ Rocket Launcher destroyed. 01998_ Wheel destroyed. Want a larger map view with more modal windows? Or have a large enough display to fit a bigger map in exchange for smaller text? Consider selecting a different UI Layout in the option menu. 02002_ as-77843 destroyed. 02003_ as-67843 destroyed. Map ----- +----------------------------------------------------+ | ?????????????????????????????????????????????????? | | ?????????????????????????????????????????????????? | | ?????????????????????????????????????????????????? | | ?????????????????????????????????????????????????? | | ?????????????????????????????????????????????????? | | ?????????????????????????????????????????????????? | | ?????????????????????????????????????????????????? | | ?????????????????????????????????????????????????? | | ???????????????????????????? ##??????????????????? | | ???????????????????????????? ##??????????????????? | | ???????????????????????????? ##??????????????????? | | ??????????????????????????? ##??????????????????? | | ??????????????????????????? ##??????????????????? | | ??????????????????????????? t##??????????????????? | | ??????????????????????????? ##??????????????????? | | ??????????????????????????? ##??????????????????? | | ???????????????????## ?? ##????######????????? | | ???????????????????## ?#### ############????????? | | ?????????????###???## ?### ###### ????????? | | ????????????### ???## ### ## ????????? | | ???????????#### ??### ### ????????? | | ???????????### ### # # ##????????? | | ??????????### ## ##??###????????? | | ??????????### %%* ###?????????????? | | ??????????## =dd ###??????????????? | | ??????????## % @ ###???????####???? | | ??????????## ####?????###### ???? | | ??????????### ####?######## ???? | | ?????????### ##?###### ?????? | | ????????### ###### ???? ?? | | ????????## %= ###### ???????? | | ????????### ## ## ##???????? | | ????????#### % < ## #####????? | | ?????????######### % % % # ######???? | | ??????????######### ### # a ######? | | ????????????????########## ### ####?? | | ?????????????????############## ##### ##?? | | ????????????????????????####### ###### ## ###?? | | ?????????????????????????????## ##?######## ##### | | ?????????????????????????????## ##??####### ##### | | ?????????????????????????????## ##???????## ##### | | ?????????????????????????????## ##???????## #### | | ?????????????????????????????## ##???????## #### | | ????????????????????????????? ##???????## #### | | ?????????????????????????????######???????## #### | | ?????????????????????????????######???????## | | ??????????????????????????????????????????######## | | ??????????????????????????????????????????######## | | ????????????????????????????????????????????????## | | ????????????????????????????????????????????????## | +----------------------------------------------------+ Best States ------------- Heat Dissipation 25 Energy Generation 10 Energy Capacity 250 Matter Stores 300 Matter Capacity 300 Sight Range 16 Terrain Scan Range 16 Terrain Scan Density 10 Evasion (%) 50 Item Schematics ----------------- None Robot Schematics ------------------ None Fabricated ------------ Nothing Alien Tech Used ----------------- None Achievements -------------- Part-time Mechanic Remodeling Shopping List Storm Trooper Challenges ------------ None Game ------ Seed ReflectiveSwarmTearclaws Manual? 0 Play Time 01:03:01 Cumulative 15.7 hours Start 2024.04.15 @ 20:44:59 End 2024.04.15 @ 21:58:57 Sessions 1 Manual Loads 0 Difficulty Rogue Special Mode None Game No. 13 Rogue 13 Adventurer 0 Explorer 0 Win Type - Total 0 Types 0/0/0/0/0/0/0/0/0 Lore% 2 Gallery% 13 Achievement% 6 Wizard Run 0 Options --------- Layout 1 ASCII 0 Keyboard 0 Movement Mouse Keybinds 0 Fullscreen 1 Font 24/Smallcaps Map View 50x35 Zoom Use 0% Tactical HUD 1 Map Filters NONE Filters NONE Steam 1 RUN: b336195a-6e32-47c6-a4b5-75dea6cb98b9